fUST/lending_fUST_20250604
["ID","MTS","AMOUNT","RATE_DAILY","PERIOD"]
[364250876,1749048666602,-151.0,0.00024196,7]
[364250877,1749048666612,-151.0,0.00024196,7]
[364250878,1749048666621,-151.0,0.00024196,7]
[364250879,1749048666631,-151.0,0.00024196,7]
[364250880,1749048666640,-157.42187,0.00024196,7]
[364250881,1749048666650,-151.0,0.00024196,7]
[364250882,1749048666659,-151.0,0.00024196,7]
[364250883,1749048666669,-151.0,0.00024196,7]
[364250884,1749048666679,-151.0,0.00024196,7]
[364250885,1749048666688,-151.0,0.00024196,7]
[364250886,1749048666697,-234.299654,0.00024196,7]
[364250887,1749048666707,-151.0,0.00024196,7]
[364250888,1749048666716,-151.0,0.00024196,7]
[364250889,1749048666725,-151.0,0.00024196,7]
[364250890,1749048666735,-151.0,0.00024196,7]
[364250891,1749048666747,-151.0,0.00024196,7]
[364250892,1749048666757,-151.0,0.00024196,7]
[364250893,1749048666766,-151.0,0.00024196,7]
[364250894,1749048666775,-151.0,0.00024196,7]
[364250895,1749048666784,-151.0,0.00024196,7]
[364250896,1749048666860,-151.0,0.00024196,7]
[364250897,1749048666869,-287.077914,0.00024196,7]
[364250898,1749048666879,-151.0,0.00024196,7]
[364250899,1749048666890,-151.0,0.00024196,7]
[364250900,1749048666900,-151.0,0.00024196,7]
[364250901,1749048666909,-151.0,0.00024196,7]
[364250902,1749048666919,-151.0,0.00024196,7]
[364250903,1749048666928,-151.0,0.00024196,7]
[364250904,1749048666937,-151.0,0.00024196,7]
[364250905,1749048666946,-151.0,0.00024196,7]
[364250906,1749048666956,-151.0,0.00024196,7]
[364250907,1749048666965,-151.0,0.00024196,7]
[364250908,1749048666974,-151.0,0.00024196,7]
[364250909,1749048666984,-151.0,0.00024196,7]
[364250910,1749048666995,-151.0,0.00024196,7]
[364250911,1749048667004,-151.0,0.00024196,7]
[364250912,1749048667014,-253.337168,0.00024196,7]
[364250913,1749048667024,-154.059257,0.00024196,7]
[364250914,1749048667033,-151.0,0.00024196,7]
[364250915,1749048667043,-151.0,0.00024196,7]
[364250916,1749048667052,-151.0,0.00024196,7]
[364250917,1749048667065,-151.0,0.00024196,7]
[364250918,1749048667075,-151.0,0.00024196,7]
[364250919,1749048667084,-151.0,0.00024196,7]
[364250920,1749048667094,-151.0,0.00024196,7]
[364250921,1749048667103,-151.0,0.00024196,7]
[364250922,1749048667113,-151.0,0.00024196,7]
[364250923,1749048667123,-151.0,0.00024196,7]
[364250924,1749048667132,-151.0,0.00024196,7]
[364250925,1749048667142,-151.0,0.00024196,7]
[364250926,1749048667152,-151.0,0.00024196,7]
[364250927,1749048667161,-151.0,0.00024196,7]
[364250928,1749048667170,-208.412058,0.00024196,7]
[364250929,1749048667179,-151.0,0.00024196,7]
[364250930,1749048667189,-151.0,0.00024196,7]
[364250931,1749048667198,-151.0,0.00024196,7]
[364250932,1749048667207,-151.0,0.00024196,7]
[364250933,1749048667217,-151.0,0.00024196,7]
[364250934,1749048667226,-151.0,0.00024196,7]
[364250935,1749048667235,-151.0,0.00024196,7]
[364250936,1749048667246,-151.0,0.00024196,7]
[364250937,1749048667255,-151.0,0.00024196,7]
[364250938,1749048667265,-151.0,0.00024196,7]
[364250939,1749048667274,-151.0,0.00024196,7]
[364250940,1749048667283,-155.913432,0.00024196,7]
[364250941,1749048667293,-151.0,0.00024196,7]
[364250942,1749048667302,-151.0,0.00024196,7]
[364250943,1749048667311,-151.0,0.00024196,7]
[364250944,1749048667321,-151.0,0.00024196,7]
[364250945,1749048667331,-151.0,0.00024196,7]
[364250946,1749048667340,-151.0,0.00024196,7]
[364250947,1749048667349,-151.0,0.00024196,7]
[364250948,1749048667359,-151.0,0.00024196,7]
[364250949,1749048667368,-151.0,0.00024196,7]
[364250950,1749048667380,-151.0,0.00024196,7]
[364250951,1749048667403,-151.0,0.00024196,7]
[364250952,1749048667420,-151.0,0.00024196,7]
[364250953,1749048667438,-151.0,0.00024196,7]
[364250954,1749048667459,-151.0,0.00024196,7]
[364250955,1749048667477,-151.0,0.00024196,7]
[364250956,1749048667497,-151.0,0.00024196,7]
[364250957,1749048667518,-151.0,0.00024196,7]
[364250958,1749048667532,-281.71469,0.00024196,7]
[364250959,1749048667550,-151.0,0.00024196,7]
[364250960,1749048667568,-151.0,0.00024196,7]
[364250961,1749048667590,-151.0,0.00024196,7]
[364250962,1749048667605,-213.544918,0.00024196,7]
[364250963,1749048667621,-151.0,0.00024196,7]
[364250964,1749048667639,-151.0,0.00024196,7]
[364250965,1749048667655,-151.0,0.00024196,7]
[364250966,1749048667670,-168.133872,0.00024196,7]
[364250967,1749048667686,-151.0,0.00024196,7]
[364250968,1749048667701,-168.133872,0.00024196,7]
[364250969,1749048667716,-151.0,0.00024196,7]
[364250970,1749048667731,-168.133872,0.00024196,7]
[364250971,1749048667746,-199.351973,0.00024196,7]
[364250972,1749048667761,-168.133872,0.00024196,7]
[364250973,1749048667775,-168.133872,0.00024196,7]
[364250974,1749048667789,-168.133872,0.00024196,7]
[364250975,1749048667805,-168.133872,0.00024196,7]
[364250976,1749048667820,-168.133872,0.00024196,7]
[364250977,1749048667835,-168.133872,0.00024196,7]
[364250978,1749048667857,-168.133872,0.00024196,7]
[364250979,1749048667872,-168.133872,0.00024196,7]
[364250980,1749048667887,-168.133872,0.00024196,7]
[364250981,1749048667902,-168.133872,0.00024196,7]
[364250982,1749048667917,-168.133872,0.00024196,7]
[364250983,1749048667932,-168.133872,0.00024196,7]
[364250984,1749048667946,-168.133872,0.00024196,7]
[364250985,1749048667960,-168.133872,0.00024196,7]
[364250986,1749048667980,-168.13388,0.00024196,7]
[364250987,1749048667994,-151.0,0.00024196,7]
[364250988,1749048668010,-152.062489,0.00024196,7]
[364250989,1749048668024,-151.0,0.00024196,7]
[364250990,1749048668039,-151.0,0.00024196,7]
[364250991,1749048668054,-151.0,0.00024196,7]
[364250992,1749048668069,-151.0,0.00024196,7]
[364250993,1749048668084,-151.0,0.00024196,7]
[364250994,1749048668098,-151.0,0.00024196,7]
[364250995,1749048668115,-151.0,0.00024196,7]
[364250996,1749048668129,-151.0,0.00024196,7]
[364250997,1749048668144,-151.0,0.00024196,7]
[364250998,1749048668159,-151.0,0.00024196,7]
[364250999,1749048668173,-151.0,0.00024196,7]
[364251000,1749048668188,-151.0,0.00024196,7]
[364251001,1749048668203,-151.0,0.00024196,7]
[364251002,1749048668218,-151.0,0.00024196,7]
[364251003,1749048668330,-152.985598,0.00024196,7]
[364251004,1749048668344,-151.0,0.00024196,7]
[364251005,1749048668354,-151.0,0.00024196,7]
[364251006,1749048668364,-293.220748,0.00024196,7]
[364251007,1749048668374,-151.0,0.00024196,7]
[364251008,1749048668385,-201.332901,0.00024196,7]
[364251009,1749048668395,-201.332901,0.00024196,7]
[364251010,1749048668405,-201.332901,0.00024196,7]
[364251011,1749048668415,-201.332901,0.00024196,7]
[364251012,1749048668424,-201.332901,0.00024196,7]
[364251013,1749048668433,-201.332901,0.00024196,7]
[364251014,1749048668442,-201.332901,0.00024196,7]
[364251015,1749048668452,-201.332901,0.00024196,7]
[364251016,1749048668462,-201.332901,0.00024196,7]
[364251017,1749048668471,-201.332901,0.00024196,7]
[364251018,1749048668480,-201.332901,0.00024196,7]
[364251019,1749048668491,-201.332901,0.00024196,7]
[364251020,1749048668501,-201.332901,0.00024196,7]
[364251021,1749048668511,-220.554782,0.00024196,7]
[364251022,1749048668521,-201.332901,0.00024196,7]
[364251023,1749048668530,-201.332901,0.00024196,7]
[364251024,1749048668540,-201.332901,0.00024196,7]
[364251025,1749048668550,-201.332901,0.00024196,7]
[364251026,1749048668560,-201.332895,0.00024196,7]
[364251027,1749048668569,-562.360051,0.00024196,7]
[364251028,1749048668578,-562.360051,0.00024196,7]
[364251029,1749048668588,-562.360051,0.00024196,7]
[364251030,1749048668598,-562.360051,0.00024196,7]
[364251031,1749048668607,-562.360051,0.00024196,7]
[364251032,1749048668617,-562.360051,0.00024196,7]
[364251033,1749048668626,-562.360051,0.00024196,7]
[364251034,1749048668636,-562.360051,0.00024196,7]
[364251035,1749048668645,-562.360051,0.00024196,7]
[364251036,1749048668655,-562.360051,0.00024196,7]
[364251037,1749048668665,-562.360051,0.00024196,7]
[364251038,1749048668675,-562.360051,0.00024196,7]
[364251039,1749048668684,-562.360051,0.00024196,7]
[364251040,1749048668695,-562.360051,0.00024196,7]
[364251041,1749048668704,-562.360051,0.00024196,7]
[364251042,1749048668712,-562.360051,0.00024196,7]
[364251043,1749048668722,-562.360051,0.00024196,7]
[364251044,1749048668732,-562.360053,0.00024196,7]
[364251045,1749048668741,-369.181005,0.00024196,7]
[364251046,1749048668751,-369.181005,0.00024196,7]
[364251047,1749048668761,-369.181005,0.00024196,7]
[364251048,1749048668770,-369.181005,0.00024196,7]
[364251049,1749048668780,-369.181005,0.00024196,7]
[364251050,1749048668789,-369.181005,0.00024196,7]
[364251051,1749048668799,-369.181005,0.00024196,7]
[364251052,1749048668808,-369.181005,0.00024196,7]
[364251053,1749048668817,-369.181005,0.00024196,7]
[364251054,1749048668827,-369.181005,0.00024196,7]
[364251055,1749048668836,-369.181005,0.00024196,7]
[364251056,1749048668846,-369.181005,0.00024196,7]
[364251057,1749048668855,-369.181005,0.00024196,7]
[364251058,1749048668865,-369.181005,0.00024196,7]
[364251059,1749048668874,-369.181005,0.00024196,7]
[364251060,1749048668883,-369.181005,0.00024196,7]
[364251061,1749048668893,-369.181005,0.00024196,7]
[364251062,1749048668903,-369.181011,0.00024196,7]
[364251063,1749048668912,-151.0,0.00024196,7]
[364251064,1749048668922,-151.0,0.00024196,7]
[364251065,1749048668931,-151.0,0.00024196,7]
[364251066,1749048668941,-154.443728,0.00024196,7]
[364251067,1749048668951,-151.0,0.00024196,7]
[364251068,1749048668961,-151.0,0.00024196,7]
[364251069,1749048668971,-151.0,0.00024196,7]
[364251070,1749048668980,-151.0,0.00024196,7]
[364251071,1749048668990,-151.0,0.00024196,7]
[364251072,1749048669002,-151.0,0.00024196,7]
[364251073,1749048669011,-151.0,0.00024196,7]
[364251074,1749048669021,-151.0,0.00024196,7]
[364251075,1749048669030,-151.0,0.00024196,7]
[364251076,1749048669039,-292.6608,0.00024196,7]
[364251077,1749048669050,-3237.34254,0.00024196,2]
[364251078,1749048669060,-3237.34254,0.00024196,2]
[364251079,1749048669071,-3237.34254,0.00024196,2]
[364251080,1749048669083,-3237.34254,0.00024196,2]
[364251081,1749048669092,-3237.34254,0.00024196,2]
[364251082,1749048669102,-3237.34254,0.00024196,2]
[364251083,1749048669112,-3237.34254,0.00024196,2]
[364251084,1749048669122,-3237.34254,0.00024196,2]
[364251085,1749048669132,-3237.34254,0.00024196,2]
[364251086,1749048669141,-3237.34254,0.00024196,2]
[364251087,1749048669152,-3237.34254,0.00024196,2]
[364251088,1749048669162,-3237.34254,0.00024196,2]
[364251089,1749048669171,-3237.34254,0.00024196,2]
[364251090,1749048669180,-3237.34254,0.00024196,2]
[364251091,1749048669190,-3237.34254,0.00024196,2]
[364251092,1749048669200,-3237.34254,0.00024196,2]
[364251093,1749048669209,-3237.34254,0.00024196,2]
[364251094,1749048669219,-3237.34255,0.00024196,2]
[364251095,1749048669229,-500.0,0.000242,4]
[364251096,1749048669239,-842.5625,0.000242,3]
[364251097,1749048669250,-226.185763,0.00024202,7]
[364251098,1749048669259,-151.0,0.00024202,7]
[364251099,1749048669269,-152.287614,0.00024202,7]
[364251100,1749048669278,-158.26813,0.00024202,7]
[364251101,1749048669288,-278.604021,0.00024202,7]
[364251102,1749048669298,-278.604021,0.00024202,7]
[364251103,1749048669307,-278.604021,0.00024202,7]
[364251104,1749048669317,-278.604021,0.00024202,7]
[364251105,1749048669327,-278.604021,0.00024202,7]
[364251106,1749048669338,-278.604021,0.00024202,7]
[364251107,1749048669348,-278.604021,0.00024202,7]
[364251108,1749048669358,-278.604021,0.00024202,7]
[364251109,1749048669368,-278.604021,0.00024202,7]
[364251110,1749048669377,-278.604021,0.00024202,7]
[364251111,1749048669386,-278.604021,0.00024202,7]
[364251112,1749048669396,-278.604021,0.00024202,7]
[364251113,1749048669405,-278.604021,0.00024202,7]
[364251114,1749048669415,-278.604021,0.00024202,7]
[364251115,1749048669424,-278.604021,0.00024202,7]
[364251116,1749048669434,-278.604021,0.00024202,7]
[364251117,1749048669443,-278.604021,0.00024202,7]
[364251118,1749048669453,-278.604021,0.00024202,7]
[364251119,1749048669462,-546.080657,0.00024202,7]
[364251120,1749048669473,-546.080657,0.00024202,7]
[364251121,1749048669483,-546.080657,0.00024202,7]
[364251122,1749048669493,-546.080657,0.00024202,7]
[364251123,1749048669503,-546.080657,0.00024202,7]
[364251124,1749048669514,-546.080657,0.00024202,7]
[364251125,1749048669523,-546.080657,0.00024202,7]
[364251126,1749048669532,-546.080657,0.00024202,7]
[364251127,1749048669540,-546.080657,0.00024202,7]
[364251128,1749048669548,-546.080657,0.00024202,7]
[364251129,1749048669556,-546.080657,0.00024202,7]
[364251130,1749048669564,-546.080657,0.00024202,7]
[364251131,1749048669573,-546.080657,0.00024202,7]
[364251132,1749048669581,-546.080657,0.00024202,7]
[364251133,1749048669590,-546.080657,0.00024202,7]
[364251134,1749048669598,-546.080657,0.00024202,7]
[364251135,1749048669607,-546.080657,0.00024202,7]
[364251136,1749048669616,-546.080649,0.00024202,7]
[364251137,1749048669624,-151.0,0.00024202,7]
[364251138,1749048669634,-182.116498,0.00024202,7]
[364251139,1749048669716,-262.180723,0.00024202,2]
[364251140,1749048669727,-151.0,0.00024202,7]
[364251141,1749048669737,-262.180723,0.00024202,2]
[364251142,1749048669748,-151.0,0.00024202,7]
[364251143,1749048669757,-151.0,0.00024202,7]
[364251144,1749048669767,-262.180723,0.00024202,2]
[364251145,1749048669776,-151.0,0.00024202,7]
[364251146,1749048669786,-262.180723,0.00024202,2]
[364251147,1749048669796,-151.0,0.00024202,7]
[364251148,1749048669806,-151.0,0.00024202,7]
[364251149,1749048669816,-262.180723,0.00024202,2]
[364251150,1749048669826,-151.0,0.00024202,7]
[364251151,1749048669835,-262.180723,0.00024202,2]
[364251152,1749048669846,-151.0,0.00024202,7]
[364251153,1749048669855,-262.180723,0.00024202,2]
[364251154,1749048669864,-151.0,0.00024202,7]
[364251155,1749048669875,-262.180723,0.00024202,2]
[364251156,1749048669885,-151.0,0.00024202,7]
[364251157,1749048669894,-262.180723,0.00024202,2]
[364251158,1749048669904,-151.0,0.00024202,7]
[364251159,1749048669914,-151.0,0.00024202,7]
[364251160,1749048669923,-151.0,0.00024202,7]
[364251161,1749048669933,-151.0,0.00024202,7]
[364251162,1749048669942,-262.180723,0.00024202,2]
[364251163,1749048669951,-151.0,0.00024202,7]
[364251164,1749048669960,-262.180723,0.00024202,2]
[364251165,1749048669969,-151.0,0.00024202,7]
[364251166,1749048669980,-151.0,0.00024202,7]
[364251167,1749048669990,-262.180723,0.00024202,2]
[364251168,1749048670000,-151.0,0.00024202,7]
[364251169,1749048670009,-262.180723,0.00024202,2]
[364251170,1749048670019,-262.180723,0.00024202,2]
[364251171,1749048670029,-262.180723,0.00024202,2]
[364251172,1749048670039,-262.180723,0.00024202,2]
[364251173,1749048670049,-262.180723,0.00024202,2]
[364251174,1749048670059,-262.180721,0.00024202,2]
[364251175,1749048670070,-163.656167,0.00024202,7]
[364251176,1749048670080,-163.656167,0.00024202,7]
[364251177,1749048670090,-163.656167,0.00024202,7]
[364251178,1749048670099,-163.656167,0.00024202,7]
[364251179,1749048670110,-163.656167,0.00024202,7]
[364251180,1749048670119,-151.0,0.00024202,7]
[364251181,1749048670129,-163.656167,0.00024202,7]
[364251182,1749048670138,-163.656167,0.00024202,7]
[364251183,1749048670150,-151.0,0.00024202,7]
[364251184,1749048670159,-151.0,0.00024202,7]
[364251185,1749048670169,-163.656167,0.00024202,7]
[364251186,1749048670179,-163.656167,0.00024202,7]
[364251187,1749048670189,-151.0,0.00024202,7]
[364251188,1749048670199,-151.0,0.00024202,7]
[364251189,1749048670209,-163.656167,0.00024202,7]
[364251190,1749048670219,-151.0,0.00024202,7]
[364251191,1749048670229,-163.656167,0.00024202,7]
[364251192,1749048670239,-151.0,0.00024202,7]
[364251193,1749048670250,-163.656167,0.00024202,7]
[364251194,1749048670259,-151.0,0.00024202,7]
[364251195,1749048670269,-163.656167,0.00024202,7]
[364251196,1749048670279,-151.0,0.00024202,7]
[364251197,1749048670289,-163.656167,0.00024202,7]
[364251198,1749048670299,-163.656167,0.00024202,7]
[364251199,1749048670309,-151.0,0.00024202,7]
[364251200,1749048670319,-163.656167,0.00024202,7]
[364251201,1749048670329,-151.0,0.00024202,7]
[364251202,1749048670339,-163.656167,0.00024202,7]
[364251203,1749048670349,-151.0,0.00024202,7]
[364251204,1749048670359,-163.65616,0.00024202,7]
[364251205,1749048670369,-151.0,0.00024202,7]
[364251206,1749048670379,-67730.49472518,0.00024219,2]
[364251207,1749048670389,-31301.89519758,0.00024219,3]
[364251208,1749048670399,-953548.55002431,0.0002422,20]
[364251209,1749048670684,-440.0,0.00016438,2]
[364251210,1749048670694,-440.0,0.00016438,2]
[364251211,1749048670704,-948.82,0.00017534,2]
[364251212,1749048670714,-1234.84,0.00017808,2]
[364251213,1749048670723,-948.82,0.00017808,2]
[364251214,1749048670732,-1234.84,0.00018082,2]
[364251215,1749048670743,-948.82,0.00018082,2]
[364251216,1749048670753,-1234.84,0.00018356,2]
[364251217,1749048670763,-948.82,0.00018356,2]
[364251218,1749048670772,-1234.84,0.0001863,2]
[364251219,1749048670781,-53.34120813,0.0001863,2]
[364251220,1749048670793,-895.47879187,0.0001863,2]
[364251221,1749048670802,-1234.84,0.00018904,2]
[364251222,1749048670812,-948.82,0.00018904,2]
[364251223,1749048670822,-42.67149676,0.00019178,2]
[364251224,1749048671046,-440.0,0.00016438,2]
[364251225,1749048671056,-306.92071621,0.00016438,2]
[364251226,1749048671068,-440.0,0.00016712,2]
[364251227,1749048671079,-440.0,0.00016986,2]
[364251228,1749048671089,-440.0,0.0001726,2]
[364251229,1749048671099,-440.0,0.00017534,2]
[364251230,1749048671110,-440.0,0.00017808,2]
[364251231,1749048671119,-400.0,0.00018082,2]
[364251232,1749048671129,-257.32850324,0.00019178,2]
[364251233,1749048671140,-1234.84,0.00019178,2]
[364251234,1749048671152,-948.82,0.00019178,2]
[364251235,1749048671161,-1234.84,0.00019452,2]
[364251236,1749048671170,-948.82,0.00019452,2]
[364251237,1749048671179,-1234.84,0.00019726,2]
[364251238,1749048671188,-948.82,0.00019726,2]
[364251239,1749048671197,-1234.84,0.0002,2]
[364251240,1749048671206,-948.82,0.0002,2]
[364251241,1749048671216,-1234.84,0.00020273,2]
[364251242,1749048671224,-948.82,0.00020273,2]
[364251243,1749048671235,-1234.84,0.00020547,2]
[364251244,1749048671244,-416.79221499,0.00020547,2]
[364251245,1749048671307,-532.02778501,0.00020547,2]
[364251246,1749048671317,-1234.84,0.00020821,2]
[364251247,1749048671328,-948.82,0.00020821,2]
[364251248,1749048671338,-1234.84,0.00021095,2]
[364251249,1749048671350,-948.82,0.00021095,2]
[364251250,1749048671359,-1234.84,0.00021369,2]
[364251251,1749048671369,-948.82,0.00021369,2]
[364251252,1749048671379,-1234.84,0.00021643,2]
[364251253,1749048671388,-948.82,0.00021643,2]
[364251254,1749048671398,-1234.84,0.00021917,2]
[364251255,1749048671408,-948.82,0.00021917,2]
[364251256,1749048671417,-1234.84,0.00022191,2]
[364251257,1749048671427,-948.82,0.00022191,2]
[364251258,1749048671436,-1234.84,0.00022465,2]
[364251259,1749048671446,-948.82,0.00022465,2]
[364251260,1749048671455,-1234.88752687,0.00022739,2]
[364251261,1749048671464,-949.02551079,0.00022739,2]
[364251262,1749048671474,-176.6037853,0.0002337,2]
[364251263,1749048671484,-158.575084,0.0002337,2]
[364251264,1749048671493,-572.7197194,0.0002337,2]
[364251265,1749048671503,-49386.30632032,0.0002422,20]
[364251266,1749048671515,-430.0,0.0002422,20]
[364251267,1749048671527,-473.91455259,0.0002422,20]
[364251268,1749048671538,-6164.23821814,0.0002422,20]
[364251271,1749048828486,475.0,0.00025,30]
[364251273,1749049053586,161.389461,0.00013699,2]
[364251277,1749049221191,500.0,0.00025,30]
[364251281,1749049428859,17547.4372445,0.00015508,2]
[364251282,1749049465590,824.97680915,0.00025,60]
[364251331,1749049603867,1657.02075338,0.00025,120]
[364251384,1749049794014,1000.0,0.00025,30]
[364251422,1749049832494,-734.3684438,0.00015847,2]
[364251423,1749049832505,-333.35188085,0.00016338,2]
[364251424,1749049832518,-157.20561444,0.00016338,2]
[364251425,1749049832528,-300.0,0.00016427,2]
[364251426,1749049832538,-300.0,0.00016427,2]
[364251427,1749049832548,-1200.0,0.00016427,2]
[364251428,1749049832560,-1031.44,0.00016428,3]
[364251429,1749049832570,-515.72,0.00016428,3]
[364251430,1749049832580,-257.86,0.00016428,3]
[364251431,1749049832589,-761.58753241,0.00016428,3]
[364251432,1749049833125,-11.99246759,0.00016428,3]
[364251433,1749049833135,-300.0,0.00016437,2]
[364251434,1749049833146,-440.0,0.00016438,2]
[364251435,1749049833156,-430.0,0.00016438,2]
[364251436,1749049833166,-204.04723304,0.00016438,2]
[364251437,1749049833176,-287.19122259,0.00016438,2]
[364251438,1749049833186,-430.0,0.00016438,2]
[364251439,1749049833196,-430.0,0.00016438,2]
[364251440,1749049833206,-430.80518927,0.00016438,2]
[364251441,1749049833216,-440.0,0.00016438,2]
[364251442,1749049833227,-208.40108148,0.00016438,2]
[364251443,1749049833237,-430.0,0.00016438,2]
[364251444,1749049833246,-339.92019048,0.00016438,2]
[364251445,1749049833256,-440.0,0.00016438,2]
[364251446,1749049833266,-328.58521431,0.00016438,2]
[364251447,1749049833276,-430.0,0.00016438,2]
[364251448,1749049833287,-440.0,0.00016438,2]
[364251449,1749049833297,-440.0,0.00016438,2]
[364251450,1749049833308,-440.0,0.00016438,2]
[364251451,1749049833319,-490.25386461,0.00016438,2]
[364251452,1749049833330,-440.0,0.00016438,2]
[364251453,1749049833340,-430.56809899,0.00016438,2]
[364251454,1749049833351,-443.32851862,0.00016438,2]
[364251455,1749049833361,-440.0,0.00016438,2]
[364251456,1749049833371,-440.0,0.00016438,2]
[364251457,1749049833381,-442.71129028,0.00016438,2]
[364251458,1749049833391,-440.0,0.00016438,2]
[364251459,1749049833402,-440.0,0.00016438,2]
[364251460,1749049833412,-430.0,0.00016438,2]
[364251461,1749049833421,-440.0,0.00016438,2]
[364251462,1749049833431,-440.0,0.00016438,2]
[364251463,1749049833441,-430.0,0.00016438,2]
[364251464,1749049833451,-430.0,0.00016438,2]
[364251465,1749049833461,-435.7739596,0.00016438,2]
[364251466,1749049833472,-440.0,0.00016438,2]
[364251467,1749049833486,-432.65054917,0.00016438,2]
[364251468,1749049833496,-440.0,0.00016438,2]
[364251469,1749049833506,-440.0,0.00016438,2]
[364251470,1749049833519,-432.29216292,0.00016438,2]
[364251471,1749049833529,-430.0,0.00016438,2]
[364251472,1749049833539,-440.0,0.00016438,2]
[364251473,1749049833550,-276.07627861,0.00016438,2]
[364251474,1749049833560,-440.0,0.00016438,2]
[364251475,1749049833571,-430.0,0.00016438,2]
[364251476,1749049833581,-271.02711361,0.00016438,2]
[364251477,1749049833591,-440.0,0.00016438,2]
[364251478,1749049833601,-440.0,0.00016438,2]
[364251479,1749049833611,-440.0,0.00016438,2]
[364251480,1749049833622,-289.74675526,0.00016438,2]
[364251481,1749049833632,-440.0,0.00016438,2]
[364251482,1749049833642,-440.0,0.00016438,2]
[364251483,1749049833652,-440.0,0.00016438,2]
[364251484,1749049833663,-430.88291499,0.00016438,2]
[364251485,1749049833673,-430.0,0.00016438,2]
[364251486,1749049833684,-435.41615835,0.00016438,2]
[364251487,1749049833694,-151.81383833,0.00016438,2]
[364251488,1749049833704,-431.85923875,0.00016438,2]
[364251489,1749049833713,-430.0,0.00016438,2]
[364251490,1749049833723,-440.0,0.00016438,2]
[364251491,1749049833733,-440.0,0.00016438,2]
[364251492,1749049833744,-524.71323358,0.00016438,2]
[364251493,1749049833754,-430.0,0.00016438,2]
[364251494,1749049833764,-444.00667807,0.00016438,2]
[364251495,1749049833775,-440.0,0.00016438,2]
[364251496,1749049833785,-440.0,0.00016438,2]
[364251497,1749049833795,-440.0,0.00016438,2]
[364251498,1749049833805,-440.86051761,0.00016438,2]
[364251499,1749049833815,-442.06678165,0.00016438,2]
[364251500,1749049833825,-440.0,0.00016438,2]
[364251501,1749049833835,-444.02518276,0.00016438,2]
[364251502,1749049833846,-441.46446297,0.00016438,2]
[364251503,1749049833857,-446.95560544,0.00016438,2]
[364251504,1749049833867,-440.0,0.00016438,2]
[364251505,1749049833879,-444.10104605,0.00016438,2]
[364251506,1749049833889,-440.0,0.00016438,2]
[364251507,1749049833899,-440.0,0.00016438,2]
[364251508,1749049833909,-413.30646775,0.00016438,2]
[364251509,1749049833919,-430.23911861,0.00016438,2]
[364251510,1749049833928,-440.0,0.00016438,2]
[364251511,1749049833938,-440.0,0.00016438,2]
[364251512,1749049833948,-188.0,0.00016438,2]
[364251513,1749049833958,-430.40898799,0.00016438,2]
[364251514,1749049833968,-440.964079,0.00016438,2]
[364251515,1749049833978,-440.0,0.00016438,2]
[364251516,1749049833988,-440.0,0.00016438,2]
[364251517,1749049833998,-440.0,0.00016438,2]
[364251518,1749049834008,-157.5064907,0.00016438,2]
[364251519,1749049834018,-444.21661399,0.00016438,2]
[364251520,1749049834028,-440.0,0.00016438,2]
[364251521,1749049834038,-478.84257984,0.00016438,2]